[Event "European School-ch 2019"]
[Site "Mamaia"]
[Date "2019.06.06"]
[Round "7.46"]
[White "Mikhailina, Olga"]
[Black "Babic, Masa"]
[Result "0-1"]
[ECO "A55"]
[WhiteElo "1338"]
[BlackElo "1715"]
[Annotator "NA RC"]
[PlyCount "106"]
[EventDate "2019.05.31"]
[EventType "swiss"]
[EventCountry "ROU"]
[SourceTitle "playchess.com"]
[Source "ChessBase"]
[SourceQuality "1"]
[TimeControl "40/5400+30:1800+30"]

1. d4 {[%emt 0:00:00]} Nf6 {[%emt 0:00:00]} 2. c4 {[%emt 0:00:00]} d6 {[%emt 0:00:00]} 3. Nc3 {[%emt 0:00:00]} Nbd7 {[%emt 0:00:00]} 4. Nf3 {[%emt 0:00:16]} e5 {[%emt 0:00:00]} 5. e4 {[%emt 0:00:09]} c6 {[%emt 0:00:20]} 6. Be2 {[%emt 0:00:16]} Be7 {[%emt 0:00:19]} 7. O-O {[%emt 0:00:15]} O-O {[%emt 0:00:03]} 8. h3 {[%emt 0:00:10]} a6 {[%emt 0:05:39]} 9. a4 {[%emt 0:02:34]} a5 {[%emt 0:03:57]} 10. Be3 {[%emt 0:00:57]} exd4 {[%emt 0:02:10]} 11. Nxd4 {[%emt 0:00:41]} Nc5 {[%emt 0:01:20]} 12. Qc2 {[%emt 0:01:43]} Qc7 {[%emt 0:02:19]} 13. f4 {[%emt 0:04:13]} h6 {[%emt 0:04:22]} 14. Rad1 {[%emt 0:07:54]} Rd8 {[%emt 0:05:14]} 15. Kh2 {[%emt 0:07:01]} Bd7 {[%emt 0:16:04]} 16. Rg1 {[%emt 0:07:36]} Ne6 {[%emt 0:12:38]} 17. Qd2 {[%emt 0:24:26]} Nxd4 {[%emt 0:08:34]} 18. Bxd4 {[%emt 0:02:18]} Be6 {[%emt 0:08:24]} 19. g4 {[%emt 0:22:19]} Nh7 {[%emt 0:10:42]} 20. f5 {[%emt 0:08:49]} Bxc4 {[%emt 0:03:31]} 21. Bxc4 {[%emt 0:03:16]} d5+ {[%emt 0:00:06]} 22. Kh1 {[%emt 0:03:31]} dxc4 {[%emt 0:00:12]} 23. Qe2 {[%emt 0:01:00]} Ng5 {[%emt 0:05:21]} 24. Qg2 {[%emt 0:01:21]} Rxd4 {[%emt 0:08:18]} 25. Rxd4 {[%emt 0:00:09]} Bc5 {[%emt 0:00:02]} 26. Rxc4 {[%emt 0:01:11]} Bxg1 {[%emt 0:00:05]} 27. Qxg1 {[%emt 0:00:47]} Nxh3 {[%emt 0:00:23]} 28. Qg2 {[%emt 0:00:24]} Ng5 {[%emt 0:00:22]} 29. Rd4 {[%emt 0:00:30]} Rd8 {[%emt 0:01:25]} 30. Qd2 {[%emt 0:00:27]} Rxd4 {[%emt 0:00:27]} 31. Qxd4 {[%emt 0:00:04]} Qf4 {[%emt 0:00:13]} 32. Qg1 {[%emt 0:01:11]} Nxe4 {[%emt 0:00:16]} 33. Nxe4 {[%emt 0:00:21]} Qxe4+ {[%emt 0:00:05]} 34. Kh2 {[%emt 0:00:37]} Qxa4 {[%emt 0:00:05]} 35. Qg2 {[%emt 0:00:30]} Qf4+ {[%emt 0:00:29]} 36. Kh3 {[%emt 0:00:29]} h5 {[%emt 0:01:06]} 37. gxh5 {[%emt 0:00:09]} Qxf5+ {[%emt 0:00:04]} 38. Kh4 {[%emt 0:00:29]} f6 {[%emt 0:00:16]} 39. Qe2 {[%emt 0:00:44]} Qf4+ {[%emt 0:01:21]} 40. Kh3 {[%emt 0:00:00]} Qe5 {[%emt 0:00:00]} 41. Qc4+ {[%emt 0:02:31]} Kh8 {[%emt 0:01:29]} 42. Qf7 {[%emt 0:00:58]} b5 {[%emt 0:01:34]} 43. Kg4 {[%emt 0:04:31]} f5+ {[%emt 0:03:55]} 44. Kh3 {[%emt 0:01:34]} f4 {[%emt 0:01:32]} 45. h6 {[%emt 0:02:11]} Qe3+ {[%emt 0:01:16]} 46. Kg4 {[%emt 0:05:47]} Qg3+ {[%emt 0:00:18]} 47. Kf5 {[%emt 0:00:18]} Qh3+ {[%emt 0:00:17]} 48. Ke5 {[%emt 0:00:42]} Qxh6 {[%emt 0:00:37]} 49. Qf8+ {[%emt 0:02:20]} Kh7 {[%emt 0:00:11]} 50. Qf5+ {[%emt 0:00:31]} g6 {[%emt 0:00:06]} 51. Qc8 {[%emt 0:01:46]} Qg5+ {[%emt 0:00:26]} 52. Kd6 {[%emt 0:01:40]} Qf6+ {[%emt 0:00:46]} 53. Kc5 {[%emt 0:00:28]} Qf5+ {[%emt 0:00:46]} 0-1

[Event "European School-ch 2019"]
[Site "Mamaia"]
[Date "2019.06.06"]
[Round "7.47"]
[White "Andries, Alexia"]
[Black "Babic, Milana"]
[Result "0-1"]
[ECO "A55"]
[WhiteElo "1287"]
[BlackElo "1677"]
[Annotator "NA RC"]
[PlyCount "114"]
[EventDate "2019.05.31"]
[EventType "swiss"]
[EventCountry "ROU"]
[SourceTitle "playchess.com"]
[Source "ChessBase"]
[SourceQuality "1"]
[TimeControl "40/5400+30:1800+30"]

1. d4 {[%emt 0:00:00]} Nf6 {[%emt 0:00:00]} 2. c4 {[%emt 0:00:02]} d6 {[%emt 0:00:00]} 3. Nc3 {[%emt 0:00:50]} Nbd7 {[%emt 0:00:00]} 4. Nf3 {[%emt 0:01:55]} e5 {[%emt 0:00:00]} 5. e4 {[%emt 0:01:36]} c6 {[%emt 0:00:14]} 6. Bd3 {[%emt 0:01:33]} Be7 {[%emt 0:00:14]} 7. O-O {[%emt 0:03:19]} O-O {[%emt 0:00:05]} 8. b3 {[%emt 0:05:19]} exd4 {[%emt 0:05:23]} 9. Nxd4 {[%emt 0:02:17]} Re8 {[%emt 0:00:27]} 10. Bb2 {[%emt 0:00:51]} Bf8 {[%emt 0:02:25]} 11. Re1 {[%emt 0:05:05]} Nc5 {[%emt 0:03:02]} 12. Bc2 {[%emt 0:00:39]} a5 {[%emt 0:01:31]} 13. Qd2 {[%emt 0:06:59]} Qb6 {[%emt 0:03:48]} 14. a4 {[%emt 0:03:55]} Be6 {[%emt 0:00:53]} 15. Rad1 {[%emt 0:04:45]} Rad8 {[%emt 0:01:11]} 16. Qc1 {[%emt 0:01:21]} Bg4 {[%emt 0:04:30]} 17. f3 {[%emt 0:03:21]} Bd7 {[%emt 0:01:20]} 18. Kh1 {[%emt 0:00:23]} Ne6 {[%emt 0:03:16]} 19. Nxe6 {[%emt 0:03:10]} Bxe6 {[%emt 0:00:04]} 20. Ne2 {[%emt 0:03:39]} Be7 {[%emt 0:05:25]} 21. Nd4 {[%emt 0:04:37]} Nd7 {[%emt 0:06:57]} 22. Bc3 {[%emt 0:01:41]} Qc7 {[%emt 0:01:45]} 23. Qb2 {[%emt 0:00:49]} Bf8 {[%emt 0:08:20]} 24. Bb1 {[%emt 0:05:27]} Nc5 {[%emt 0:08:59]} 25. Qc2 {[%emt 0:02:09]} Bd7 {[%emt 0:08:46]} 26. e5 {[%emt 0:01:36]} g6 {[%emt 0:00:07]} 27. exd6 {[%emt 0:00:13]} Bxd6 {[%emt 0:01:03]} 28. h3 {[%emt 0:01:15]} Bg3 {[%emt 0:01:23]} 29. Rxe8+ {[%emt 0:00:24]} Rxe8 {[%emt 0:00:06]} 30. Ne2 {[%emt 0:00:46]} Be5 {[%emt 0:04:28]} 31. Nd4 {[%emt 0:01:03]} Bxd4 {[%emt 0:01:10]} 32. Bxd4 {[%emt 0:00:17]} Ne6 {[%emt 0:07:02]} 33. Bf6 {[%emt 0:00:52]} Ng7 {[%emt 0:04:55]} 34. Qd2 {[%emt 0:01:02]} Be6 {[%emt 0:03:01]} 35. Qh6 {[%emt 0:00:31]} Nh5 {[%emt 0:00:06]} 36. Qg5 {[%emt 0:04:20]} Nxf6 {[%emt 0:02:21]} 37. Qxf6 {[%emt 0:00:16]} b5 {[%emt 0:00:14]} 38. Re1 {[%emt 0:02:50]} bxa4 {[%emt 0:01:32]} 39. bxa4 {[%emt 0:00:07]} Qe7 {[%emt 0:00:35]} 40. Qc3 {[%emt 0:00:00]} Qb4 {[%emt 0:00:00]} 41. Qc2 {[%emt 0:03:06]} Qxe1+ {[%emt 0:01:30]} 42. Kh2 {[%emt 0:00:12]} Qe5+ {[%emt 0:00:13]} 43. Kh1 {[%emt 0:00:29]} Bf5 {[%emt 0:00:05]} 44. Qa2 {[%emt 0:00:22]} Bxb1 {[%emt 0:00:08]} 45. Qxb1 {[%emt 0:00:06]} Qe1+ {[%emt 0:00:04]} 46. Qxe1 {[%emt 0:00:08]} Rxe1+ {[%emt 0:00:03]} 47. Kh2 {[%emt 0:00:06]} Ra1 {[%emt 0:00:06]} 48. Kg3 {[%emt 0:00:07]} Rxa4 {[%emt 0:00:05]} 49. f4 {[%emt 0:00:15]} Rxc4 {[%emt 0:00:03]} 50. Kg4 {[%emt 0:00:08]} a4 {[%emt 0:00:06]} 51. Kg5 {[%emt 0:00:09]} a3 {[%emt 0:00:05]} 52. g4 {[%emt 0:00:12]} a2 {[%emt 0:00:05]} 53. f5 {[%emt 0:00:11]} a1=Q {[%emt 0:00:14]} 54. fxg6 {[%emt 0:00:33]} hxg6 {[%emt 0:00:10]} 55. h4 {[%emt 0:00:17]} Qe5+ {[%emt 0:00:04]} 56. Kh6 {[%emt 0:00:13]} Qf4+ {[%emt 0:00:06]} 57. g5 {[%emt 0:00:12]} Qxh4# 0-1

[Event "European School-ch 2019"]
[Site "Mamaia"]
[Date "2019.06.06"]
[Round "7.48"]
[White "Rasheva, Nora"]
[Black "Novikova, Daria"]
[Result "1/2-1/2"]
[ECO "D19"]
[WhiteElo "1473"]
[BlackElo "1441"]
[Annotator "NA RC"]
[PlyCount "126"]
[EventDate "2019.05.31"]
[EventType "swiss"]
[EventCountry "ROU"]
[SourceTitle "playchess.com"]
[Source "ChessBase"]
[SourceQuality "1"]
[TimeControl "40/5400+30:1800+30"]

1. d4 {[%emt 0:00:00]} d5 {[%emt 0:00:00]} 2. Nf3 {[%emt 0:00:00]} Nf6 {[%emt 0:00:08]} 3. c4 {[%emt 0:00:00]} c6 {[%emt 0:00:06]} 4. Nc3 {[%emt 0:00:18]} dxc4 {[%emt 0:01:37]} 5. a4 {[%emt 0:00:12]} Bf5 {[%emt 0:00:20]} 6. e3 {[%emt 0:00:30]} e6 {[%emt 0:00:07]} 7. Bxc4 {[%emt 0:00:31]} Bb4 {[%emt 0:00:19]} 8. O-O {[%emt 0:00:27]} O-O {[%emt 0:01:05]} 9. Qe2 {[%emt 0:01:09]} Nbd7 {[%emt 0:06:25]} 10. e4 {[%emt 0:02:02]} Bg6 {[%emt 0:00:12]} 11. Bd3 {[%emt 0:00:49]} c5 {[%emt 0:07:47]} 12. e5 {[%emt 0:28:12]} Nd5 {[%emt 0:07:06]} 13. Bxg6 {[%emt 0:00:40]} hxg6 {[%emt 0:00:17]} 14. Nxd5 {[%emt 0:02:09]} exd5 {[%emt 0:00:07]} 15. e6 {[%emt 0:05:32]} Qe7 {[%emt 0:01:31]} 16. exf7+ {[%emt 0:00:08]} Qxf7 {[%emt 0:02:09]} 17. Ng5 {[%emt 0:01:20]} Qf6 {[%emt 0:02:28]} 18. Qe6+ {[%emt 0:01:57]} Qxe6 {[%emt 0:00:10]} 19. Nxe6 {[%emt 0:00:07]} Rfc8 {[%emt 0:04:38]} 20. Bf4 {[%emt 0:03:15]} Ba5 {[%emt 0:00:24]} 21. Rac1 {[%emt 0:02:32]} c4 {[%emt 0:00:26]} 22. Rc2 {[%emt 0:03:19]} Rc6 {[%emt 0:00:29]} 23. Ng5 {[%emt 0:00:47]} Nb6 {[%emt 0:17:06]} 24. Ra1 {[%emt 0:11:27]} Re8 {[%emt 0:04:52]} 25. Nf3 {[%emt 0:03:50]} Nd7 {[%emt 0:05:22]} 26. h3 {[%emt 0:00:38]} Re4 {[%emt 0:02:44]} 27. Be3 {[%emt 0:00:48]} Re8 {[%emt 0:05:28]} 28. Kf1 {[%emt 0:05:47]} Rec8 {[%emt 0:00:47]} 29. Ke2 {[%emt 0:07:10]} c3 {[%emt 0:01:17]} 30. b3 {[%emt 0:00:47]} Rb6 {[%emt 0:00:49]} 31. Rb1 {[%emt 0:00:26]} Rb4 {[%emt 0:07:46]} 32. Kd3 {[%emt 0:02:54]} b5 {[%emt 0:04:13]} 33. axb5 {[%emt 0:00:12]} Rxb5 {[%emt 0:00:13]} 34. Bd2 {[%emt 0:05:12]} Rcb8 {[%emt 0:01:17]} 35. Bxc3 {[%emt 0:00:39]} Rxb3 {[%emt 0:00:11]} 36. Rxb3 {[%emt 0:00:09]} Rxb3 {[%emt 0:00:09]} 37. Nd2 {[%emt 0:00:46]} Rxc3+ {[%emt 0:00:37]} 38. Rxc3 {[%emt 0:00:04]} Bxc3 {[%emt 0:00:11]} 39. Kxc3 {[%emt 0:00:04]} Kf7 {[%emt 0:00:45]} 40. Kb4 {[%emt 0:00:00]} Nb8 {[%emt 0:00:00]} 41. Kc5 {[%emt 0:03:02]} Ke6 {[%emt 0:02:09]} 42. Nb1 {[%emt 0:01:18]} Nd7+ {[%emt 0:03:06]} 43. Kc6 {[%emt 0:01:46]} a5 {[%emt 0:03:54]} 44. Nc3 {[%emt 0:01:49]} Nf6 {[%emt 0:00:26]} 45. f3 {[%emt 0:01:24]} a4 {[%emt 0:01:37]} 46. Nxa4 {[%emt 0:00:26]} Nh5 {[%emt 0:00:54]} 47. Nc3 {[%emt 0:00:46]} Nf4 {[%emt 0:00:07]} 48. g3 {[%emt 0:02:24]} Nxh3 {[%emt 0:00:27]} 49. Nxd5 {[%emt 0:00:06]} Ng5 {[%emt 0:00:42]} 50. Nc7+ {[%emt 0:10:24]} Kf5 {[%emt 0:02:54]} 51. Ne8 {[%emt 0:03:39]} Nxf3 {[%emt 0:03:07]} 52. d5 {[%emt 0:00:39]} Kg4 {[%emt 0:07:16]} 53. Nxg7 {[%emt 0:03:07]} Kxg3 {[%emt 0:00:44]} 54. d6 {[%emt 0:00:13]} Ne5+ {[%emt 0:00:17]} 55. Kd5 {[%emt 0:00:11]} Kf4 {[%emt 0:00:22]} 56. Ne6+ {[%emt 0:00:47]} Kf5 {[%emt 0:00:07]} 57. Nd4+ {[%emt 0:00:29]} Kf6 {[%emt 0:00:14]} 58. Ne6 {[%emt 0:03:31]} Nd7 {[%emt 0:02:23]} 59. Nc5 {[%emt 0:05:51]} Ne5 {[%emt 0:01:41]} 60. Ne4+ {[%emt 0:00:40]} Kf5 {[%emt 0:00:27]} 61. Ng3+ {[%emt 0:00:45]} Kf6 {[%emt 0:00:33]} 62. Ne4+ {[%emt 0:00:34]} Kf5 {[%emt 0:00:17]} 63. Ng3+ {[%emt 0:01:55]} Kf6 {[%emt 0:00:19]} 1/2-1/2

[Event "European School-ch 2019"]
[Site "Mamaia"]
[Date "2019.06.06"]
[Round "7.49"]
[White "Shuqja, Klean"]
[Black "Karaivanova, Petya"]
[Result "0-1"]
[ECO "C77"]
[WhiteElo "1858"]
[BlackElo "1688"]
[Annotator "NA RC"]
[PlyCount "220"]
[EventDate "2019.05.31"]
[EventType "swiss"]
[EventCountry "ROU"]
[SourceTitle "playchess.com"]
[Source "ChessBase"]
[SourceQuality "1"]
[TimeControl "40/5400+30:1800+30"]

1. e4 {[%emt 0:00:00]} e5 {[%emt 0:00:00]} 2. Nf3 {[%emt 0:00:00]} Nc6 {[%emt 0:00:00]} 3. Bb5 {[%emt 0:00:00]} a6 {[%emt 0:00:00]} 4. Ba4 {[%emt 0:00:00]} Nf6 {[%emt 0:00:00]} 5. d3 {[%emt 0:00:00]} d6 {[%emt 0:00:12]} 6. O-O {[%emt 0:00:00]} b5 {[%emt 0:00:45] C79: Ruy Lopez: Steinitz-type lines with 3...a6 4 Ba4 Nf6 5 0-0 d6} 7. Bb3 {[%emt 0:00:00]} Na5 {[%emt 0:00:45]} 8. c3 {[%emt 0:01:58]} (8. Re1 Nxb3 9. axb3 c5 10. Bg5 Be7 11. Nc3 Bb7 12. Bxf6 Bxf6 13. Nd5 Bxd5 14. exd5 {½-½ (65) Vachier Lagrave,M (2789)-Carlsen,M (2855) Paris 2016}) 8... Nxb3 {[%emt 0:01:02]} 9. Qxb3 {[%emt 0:03:39]} Be7 {[%emt 0:05:56]} 10. h3 {[%emt 0:04:34]} O-O {[%emt 0:00:25]} 11. Re1 {[%emt 0:02:24]} Be6 {[%emt 0:00:29]} 12. Qc2 {[%emt 0:06:08]} c5 {[%emt 0:10:00]} 13. Nbd2 {[%emt 0:02:02]} Rc8 {[%emt 0:01:52]} 14. Nf1 {[%emt 0:00:33]} h6 {[%emt 0:04:19]} 15. Ng3 {[%emt 0:01:16]} Nh7 $146 {[%emt 0:02:14]} ({Predecessor:} 15... Nd7 16. Nf5 Bxf5 17. exf5 Bf6 {1-0 (37) Lantos,A (1978)-Szabo,A (2117) Hungary 2003}) 16. Qe2 {[%emt 0:12:56]} Bf6 {[%emt 0:13:34]} 17. Bd2 {[%emt 0:08:21]} Re8 {[%emt 0:00:56]} 18. Nh5 {[%emt 0:05:49]} Nf8 {[%emt 0:04:02]} 19. Nh2 {[%emt 0:05:55]} Ng6 $11 {[%emt 0:07:58]} 20. Nxf6+ {[%emt 0:07:28]} Qxf6 {[%emt 0:00:14]} 21. Qf3 {[%emt 0:16:10]} Qe7 {[%emt 0:00:44]} 22. Ng4 {[%emt 0:01:59]} Rf8 {[%emt 0:07:16]} 23. Ne3 {[%emt 0:03:21]} Qg5 {[%emt 0:07:38]} 24. Nf1 {[%emt 0:05:29]} Qd8 {[%emt 0:01:29]} 25. Ne3 {[%emt 0:02:46]} Ne7 {[%emt 0:02:40]} 26. g4 {[%emt 0:03:46]} d5 {[%emt 0:09:58]} 27. Nf5 {[%emt 0:01:02]} dxe4 {[%emt 0:02:14]} 28. Nxe7+ {[%emt 0:00:05]} Qxe7 {[%emt 0:00:10]} 29. dxe4 {[%emt 0:02:30]} Rfd8 {[%emt 0:01:31]} 30. Be3 {[%emt 0:01:01]} Bc4 {[%emt 0:02:05]} 31. b3 {[%emt 0:01:31]} Bd3 {[%emt 0:01:18]} 32. Rad1 {[%emt 0:01:12]} c4 {[%emt 0:00:38]} 33. b4 {[%emt 0:00:35]} Qb7 {[%emt 0:00:56]} 34. Bc5 {[%emt 0:00:58]} Rd7 {[%emt 0:02:31]} 35. Qe3 {[%emt 0:01:21]} Rc6 {[%emt 0:01:33]} 36. f3 {[%emt 0:00:37]} Rf6 {[%emt 0:01:34]} 37. Kh2 {[%emt 0:00:30]} Qc8 {[%emt 0:00:52]} 38. Kg3 {[%emt 0:00:26]} Rf4 {[%emt 0:01:15]} 39. Rd2 {[%emt 0:00:30]} Qd8 {[%emt 0:01:21]} 40. Bb6 {[%emt 0:00:00]} Qf6 {[%emt 0:00:00]} 41. Red1 {[%emt 0:21:06]} Qg6 {[%emt 0:08:56]} 42. Bc5 {[%emt 0:04:23]} Rc7 {[%emt 0:01:51]} 43. Qe1 {[%emt 0:03:37]} Rc6 {[%emt 0:10:35]} 44. Be3 {[%emt 0:01:03]} Rff6 {[%emt 0:00:07]} 45. Rf2 {[%emt 0:00:44]} Rc8 {[%emt 0:02:14]} 46. Rfd2 {[%emt 0:00:39]} Ra8 {[%emt 0:01:20]} 47. a3 {[%emt 0:00:40]} Rc8 {[%emt 0:00:34]} 48. Rb2 {[%emt 0:01:03]} Rfc6 {[%emt 0:00:35]} 49. Rdd2 {[%emt 0:00:43]} f6 {[%emt 0:02:36]} 50. Qf2 {[%emt 0:00:31]} h5 {[%emt 0:00:43]} 51. Qe1 {[%emt 0:00:45]} Kf7 {[%emt 0:01:04]} 52. Rh2 {[%emt 0:00:30]} Rh8 {[%emt 0:00:46]} 53. Qh1 {[%emt 0:00:42]} Rcc8 {[%emt 0:01:10]} 54. Qg1 {[%emt 0:00:49]} Rcd8 {[%emt 0:01:12]} 55. Rbd2 {[%emt 0:00:31]} Rd7 {[%emt 0:01:15]} 56. Qh1 {[%emt 0:00:31]} Rdd8 {[%emt 0:00:40]} 57. Qg1 {[%emt 0:00:37]} Qh7 {[%emt 0:00:54]} 58. Qh1 {[%emt 0:00:20]} g6 {[%emt 0:00:27]} 59. Qg1 {[%emt 0:00:18]} Qg7 {[%emt 0:00:42]} 60. Bb6 {[%emt 0:00:46]} Rd7 {[%emt 0:01:05]} 61. Qd1 {[%emt 0:00:46]} Qh6 {[%emt 0:00:54]} 62. Qe1 {[%emt 0:00:27]} Qf4+ {[%emt 0:00:53]} 63. Kg2 {[%emt 0:00:07]} hxg4 {[%emt 0:00:45]} 64. Qe3 {[%emt 0:00:50]} gxf3+ {[%emt 0:01:07]} 65. Kg1 {[%emt 0:00:27]} Qxe3+ {[%emt 0:01:57]} 66. Bxe3 {[%emt 0:00:02]} Ke6 {[%emt 0:01:00]} 67. Kf2 {[%emt 0:01:02]} Bxe4 {[%emt 0:00:36]} 68. Rxd7 {[%emt 0:00:34]} Kxd7 {[%emt 0:00:04]} 69. Kg3 {[%emt 0:00:26]} Ke6 {[%emt 0:01:14]} 70. Rd2 {[%emt 0:00:25]} Bd5 {[%emt 0:00:45]} 71. h4 {[%emt 0:00:33]} Rh5 {[%emt 0:00:56]} 72. Ra2 {[%emt 0:00:26]} Bc6 {[%emt 0:01:54]} 73. Rd2 {[%emt 0:00:10]} Rh7 {[%emt 0:00:34]} 74. Rd8 {[%emt 0:00:34]} Rd7 {[%emt 0:00:58]} 75. Rc8 {[%emt 0:00:42]} Bb7 {[%emt 0:00:36]} 76. Rb8 {[%emt 0:00:39]} Kf5 {[%emt 0:01:12]} 77. Rf8 {[%emt 0:00:36]} Ke6 {[%emt 0:00:35]} 78. Bc5 {[%emt 0:00:26]} Rf7 {[%emt 0:00:46]} 79. Rg8 {[%emt 0:00:32]} Kf5 {[%emt 0:00:21]} 80. Rd8 {[%emt 0:00:17]} e4 {[%emt 0:00:40]} 81. Rd6 {[%emt 0:00:36]} Ke5 {[%emt 0:00:34]} 82. Rb6 {[%emt 0:00:38]} Rd7 {[%emt 0:00:43]} 83. Bd4+ {[%emt 0:00:16]} Kd5 {[%emt 0:00:04]} 84. Rxf6 {[%emt 0:00:24]} Rd6 {[%emt 0:00:41]} 85. Rf7 {[%emt 0:00:25]} Bc8 {[%emt 0:00:24]} 86. Rc7 {[%emt 0:00:41]} Rc6 {[%emt 0:00:27]} 87. Re7 {[%emt 0:00:39]} Re6 {[%emt 0:00:38]} 88. Rc7 {[%emt 0:00:27]} Rc6 {[%emt 0:00:09]} 89. Re7 {[%emt 0:00:30]} Bf5 {[%emt 0:00:19]} 90. Re5+ {[%emt 0:00:35]} Kd6 {[%emt 0:00:05]} 91. h5 {[%emt 0:00:33]} Kd7 {[%emt 0:01:05]} 92. Kf4 {[%emt 0:00:24]} Rd6 {[%emt 0:00:54]} 93. h6 {[%emt 0:00:34]} Rxd4 {[%emt 0:00:29]} 94. h7 {[%emt 0:00:29]} f2 {[%emt 0:00:13]} 95. h8=Q {[%emt 0:00:27]} f1=Q+ {[%emt 0:00:09]} 96. Kg5 {[%emt 0:00:20]} Qc1+ {[%emt 0:00:43]} 97. Kf6 {[%emt 0:00:14]} Rd6+ {[%emt 0:00:05]} 98. Kg7 {[%emt 0:01:00]} Qxc3 {[%emt 0:01:03]} 99. Qe8+ {[%emt 0:00:28]} Kc7 {[%emt 0:00:04]} 100. Kg8 {[%emt 0:00:33]} Bd7 {[%emt 0:01:18]} 101. Rc5+ {[%emt 0:00:28]} Kb7 {[%emt 0:00:04]} 102. Qxe4+ {[%emt 0:00:17]} Kb6 {[%emt 0:01:02]} 103. Re5 {[%emt 0:00:44]} Qh3 {[%emt 0:00:34]} 104. Kg7 {[%emt 0:00:28]} Qc3 {[%emt 0:00:22]} 105. Kg8 {[%emt 0:00:21]} Rc6 {[%emt 0:00:33]} 106. Qd5 {[%emt 0:00:29]} Qh3 {[%emt 0:00:34]} 107. Qd4+ {[%emt 0:00:25]} Kb7 {[%emt 0:00:01]} 108. Kg7 {[%emt 0:00:37]} Rc7 {[%emt 0:00:16]} 109. Kf8 {[%emt 0:00:43]} Qh8+ {[%emt 0:00:51]} 110. Ke7 {[%emt 0:00:21]} Bf5+ {[%emt 0:00:13]} 0-1

[Event "European School-ch 2019"]
[Site "Mamaia"]
[Date "2019.06.06"]
[Round "7.50"]
[White "Aydin, Gulenay"]
[Black "Alimova, Dana"]
[Result "1/2-1/2"]
[ECO "B40"]
[WhiteElo "1967"]
[BlackElo "1732"]
[Annotator "NA RC"]
[PlyCount "85"]
[EventDate "2019.05.31"]
[EventType "swiss"]
[EventCountry "ROU"]
[SourceTitle "playchess.com"]
[Source "ChessBase"]
[SourceQuality "1"]
[TimeControl "40/5400+30:1800+30"]

1. e4 {[%emt 0:00:00]} c5 {[%emt 0:00:00]} 2. Nf3 {[%emt 0:00:00]} e6 {[%emt 0:00:00]} 3. c3 {[%emt 0:00:00]} Nf6 {[%emt 0:00:00]} 4. e5 {[%emt 0:00:00]} Nd5 {[%emt 0:00:07]} 5. d4 {[%emt 0:00:00]} cxd4 {[%emt 0:00:23]} 6. cxd4 {[%emt 0:00:02]} d6 {[%emt 0:00:18]} 7. a3 {[%emt 0:00:33]} Bd7 {[%emt 0:00:27]} 8. Nbd2 {[%emt 0:01:22]} Bc6 {[%emt 0:01:25]} 9. Nc4 {[%emt 0:00:43]} Nb6 {[%emt 0:17:54]} 10. Nxd6+ {[%emt 0:08:55]} Bxd6 {[%emt 0:00:13]} 11. exd6 {[%emt 0:00:05]} Qxd6 {[%emt 0:01:29]} 12. Be3 {[%emt 0:04:04]} N8d7 {[%emt 0:07:03]} 13. Be2 {[%emt 0:05:45]} O-O {[%emt 0:02:52]} 14. O-O {[%emt 0:02:55]} Nd5 {[%emt 0:11:33]} 15. Qd2 {[%emt 0:08:46]} Rfe8 $11 {[%emt 0:17:13]} 16. Rfe1 {[%emt 0:21:49]} Nxe3 {[%emt 0:15:30]} 17. Qxe3 {[%emt 0:09:09]} e5 {[%emt 0:03:18]} 18. Rad1 {[%emt 0:05:12]} exd4 {[%emt 0:06:36]} 19. Qxd4 {[%emt 0:01:10]} Qf6 {[%emt 0:02:31]} 20. Qxf6 {[%emt 0:05:36]} Nxf6 {[%emt 0:00:15]} 21. Nd4 {[%emt 0:00:48]} Rac8 {[%emt 0:06:26]} 22. h3 {[%emt 0:04:44]} Bd7 {[%emt 0:02:37]} 23. Bf3 {[%emt 0:05:05]} b6 {[%emt 0:00:47]} 24. Rc1 {[%emt 0:03:05]} Rxe1+ {[%emt 0:00:38]} 25. Rxe1 {[%emt 0:00:05]} Kf8 {[%emt 0:00:16]} 26. Kf1 {[%emt 0:04:15]} Re8 {[%emt 0:01:07]} 27. Rc1 {[%emt 0:03:28]} Rc8 {[%emt 0:00:31]} 28. Rxc8+ {[%emt 0:01:36]} Bxc8 {[%emt 0:00:02]} 29. b4 {[%emt 0:00:23]} Bd7 {[%emt 0:00:59]} 30. Ke2 {[%emt 0:01:51]} Ke7 {[%emt 0:00:32]} 31. Kd3 {[%emt 0:00:52]} Kd6 {[%emt 0:00:27]} 32. Kc4 {[%emt 0:00:35]} h6 {[%emt 0:01:02]} 33. Nb5+ {[%emt 0:02:11]} Bxb5+ {[%emt 0:00:09]} 34. Kxb5 {[%emt 0:00:03]} Kc7 {[%emt 0:00:10]} 35. Ka6 {[%emt 0:00:44]} Kb8 {[%emt 0:00:08]} 36. Kb5 {[%emt 0:00:20]} Kc7 {[%emt 0:00:06]} 37. Ka6 {[%emt 0:01:34]} Kb8 {[%emt 0:00:06]} 38. Kb5 {[%emt 0:00:39]} Kc7 {[%emt 0:00:06]} 39. a4 {[%emt 0:00:23]} Nd7 {[%emt 0:01:17]} 40. Bd5 {[%emt 0:00:00]} f6 {[%emt 0:00:00]} 41. Ka6 {[%emt 0:07:13]} Kb8 {[%emt 0:01:25]} 42. f4 {[%emt 0:06:20]} Nf8 {[%emt 0:04:17]} 43. Be4 1/2-1/2

[Event "European School-ch 2019"]
[Site "Mamaia"]
[Date "2019.06.06"]
[Round "7.51"]
[White "Petrova, Elizaveta"]
[Black "Petricenco, Ana"]
[Result "0-1"]
[ECO "D10"]
[WhiteElo "1570"]
[BlackElo "1484"]
[Annotator "NA RC"]
[PlyCount "68"]
[EventDate "2019.05.31"]
[EventType "swiss"]
[EventCountry "ROU"]
[SourceTitle "playchess.com"]
[Source "ChessBase"]
[SourceQuality "1"]
[TimeControl "40/5400+30:1800+30"]

1. d4 {[%emt 0:00:00]} d5 {[%emt 0:00:00]} 2. c4 {[%emt 0:00:00]} c6 {[%emt 0:00:00]} 3. e3 {[%emt 0:00:00]} Nf6 {[%emt 0:00:00]} 4. Nc3 {[%emt 0:00:15]} Bf5 {[%emt 0:00:39]} 5. Nf3 {[%emt 0:00:45]} e6 {[%emt 0:00:47]} 6. Be2 {[%emt 0:00:43]} Be7 {[%emt 0:01:59]} 7. O-O {[%emt 0:00:14]} O-O {[%emt 0:01:09]} 8. Nh4 {[%emt 0:04:20]} Bg6 {[%emt 0:01:27]} 9. Nxg6 {[%emt 0:03:56]} hxg6 {[%emt 0:00:19]} 10. a3 {[%emt 0:01:58]} Qc7 {[%emt 0:01:11]} 11. Qc2 {[%emt 0:02:18]} Nbd7 {[%emt 0:00:58]} 12. e4 {[%emt 0:04:47]} dxc4 {[%emt 0:00:30]} 13. e5 {[%emt 0:03:31]} Nd5 {[%emt 0:02:15]} 14. Bxc4 {[%emt 0:01:24]} Nxc3 {[%emt 0:02:38]} 15. bxc3 {[%emt 0:01:20]} c5 {[%emt 0:02:55]} 16. Be3 {[%emt 0:07:25]} Rac8 {[%emt 0:05:16]} 17. Rfc1 {[%emt 0:01:39]} a6 {[%emt 0:02:36]} 18. Bd3 {[%emt 0:02:07]} c4 {[%emt 0:00:54]} 19. Be4 {[%emt 0:04:07]} Nb6 {[%emt 0:02:51]} 20. f4 {[%emt 0:02:37]} Rfd8 {[%emt 0:02:54]} 21. Rf1 {[%emt 0:05:14]} Nd5 {[%emt 0:01:30]} 22. Bxd5 {[%emt 0:01:45]} Rxd5 {[%emt 0:00:33]} 23. a4 {[%emt 0:01:26]} Rb8 {[%emt 0:03:47]} 24. g4 {[%emt 0:10:11]} Qc6 {[%emt 0:01:37]} 25. g5 {[%emt 0:01:32]} b5 {[%emt 0:00:55]} 26. axb5 {[%emt 0:00:31]} Rdxb5 {[%emt 0:00:41]} 27. Rab1 {[%emt 0:02:51]} Qb7 {[%emt 0:02:01]} 28. Rxb5 {[%emt 0:00:14]} Qxb5 {[%emt 0:00:24]} 29. Ra1 {[%emt 0:03:49]} a5 {[%emt 0:00:31]} 30. Qa4 {[%emt 0:04:29]} Qd5 {[%emt 0:06:21]} 31. Qxa5 {[%emt 0:01:53]} Rb1+ {[%emt 0:02:05]} 32. Kf2 {[%emt 0:01:50]} Rb2+ {[%emt 0:00:43]} 33. Kf1 {[%emt 0:00:18]} Qg2+ {[%emt 0:00:11]} 34. Ke1 {[%emt 0:00:04]} Qe2# {[%emt 0:00:03]} 0-1